Cogmind - Beta 13 @@@ ROGUE MODE // 2024.04.05 @ 19:48:51 Player: Phosphophyllite Result: Destroyed by S-27 Virus with Autogun Performance ------------- Evolutions (5) 2500 Regions Visited (7) 1400 Robots Destroyed (97) 485 Value Destroyed (3432) 3432 Prototype IDs (7) 140 Alien Tech Used (0) 0 Bonus (0) 0 TOTAL SCORE: 7957 Bonus ------- None Cogmind --------- Core Integrity 0/1000 Matter 11/300 Energy 100/100 System Corruption 15% Temperature Cool (0) Movement Core (50) Location -5/Factory Parts ------- > --- POWER (2) -------- (None) > --- PROPULSION (4) --- (None) > --- UTILITY (7) ------ Core Analyzer Improved System Shield > --- WEAPON (4) ------- (None) > --- INVENTORY (5) ---- Improved Gravmag System Large Matter Pod (135) Improved Signal Interpreter Target Analyzer Improved Light Armor Plating Peak State ------------ > --- POWER ------------ Ion Engine Nuclear Core > --- PROPULSION ------- Medium Treads Carbon-fiber Leg Carbon-fiber Leg > --- UTILITY ---------- High-capacity Storage Unit Signal Interpreter Improved Targeting Computer Hardened Medium Armor Plating Hardlight Generator > --- WEAPON ----------- Assault Rifle Gauss Rifle Heavy Machine Gun Improved Heavy Machine Gun > --- INVENTORY -------- Micro Nuclear Core Light Angular Momentum Engine Aluminum Leg Improved Gravmag System Cesium-ion Thruster Improved Heat Sink Large Matter Pod Large Matter Pod Sensor Array Signal Interpreter Improved Signal Interpreter Target Analyzer Core Analyzer Recoil Stabilizer Improved Propulsion Shielding Improved Light Armor Plating Improved Light Armor Plating Drone Bay Drone Bay Shock Rifle [Rating: 46] Favorites ----------- Power Nuclear Core Engine Ion Engine Power Core Nuclear Core Propulsion Light Treads Treads Light Treads Leg Aluminum Leg Hover Unit Improved Gravmag System Flight Unit Cesium-ion Thruster Utility Signal Interpreter Device Hardlight Generator Storage High-capacity Storage Unit Processor Signal Interpreter Hackware Improved System Shield Protection Improved Light Armor Plating Weapon Heavy Assault Rifle Energy Gun High-powered Shock Rifle Energy Cannon Phase Cannon Ballistic Gun Heavy Assault Rifle Ballistic Cannon Improved Light Cannon Launcher Long-range Missile Launcher Special Weapon Plasma Cutter Build | -11 -10 -9 -9 -8 -7 -6 -5 ------- Run | Yrd Mat Mat Sto Mat Fac Fac Fac Slots Evolved 10 | . . 2 . 2 2 2 2 Power 1 | . . . . . . 1 . Propulsion 2 | . . . . 1 1 . . Utility 5 | . . 2 . . . 1 2 Weapon 2 | . . . . 1 1 . . Parts Attached 116 | 7 5 13 15 14 27 21 14 Power 16 | 1 . 1 3 2 2 4 3 Engine 9 | 1 . 1 3 1 2 1 . Core 7 | . . . . 1 . 3 3 Reactor . | . . . . . . . . Propulsion 39 | 3 2 5 6 4 10 6 3 Treads 18 | 1 . . 6 4 5 1 1 Leg 13 | 2 . 3 . . 5 3 . Wheel . | . . . . . . . . Hover 5 | . 2 . . . . 1 2 Flight 3 | . . 2 . . . 1 . Utility 27 | 1 1 3 3 4 5 4 6 Device 10 | . 1 1 1 . 2 3 2 Storage 6 | 1 . . 2 1 1 . 1 Processor 4 | . . 2 . . 1 . 1 Hackware 1 | . . . . . . . 1 Protection 6 | . . . . 3 1 1 1 Artifact . | . . . . . . . . Weapon 34 | 2 2 4 3 4 10 7 2 Energy Gun 5 | . . . . . . 3 2 Energy Cannon 1 | . . . . . . 1 . Ballistic Gun 21 | 2 1 3 2 4 7 2 . Ballistic Cannon 4 | . . . 1 . 3 . . Launcher 1 | . . . . . . 1 . Special Weapon 2 | . 1 1 . . . . . Impact Weapon . | . . . . . . . . Slashing Weapon . | . . . . . . . . Piercing Weapon . | . . . . . . . . Special Melee Weapon . | . . . . . . . . Unidentified Prototypes 3 | . . . . 1 . 2 . Parts Lost 57 | . . 2 3 3 18 21 10 Power 12 | . . 1 1 1 2 5 2 Propulsion 17 | . . 1 1 . 7 6 2 Utility 10 | . . . . 1 2 3 4 Weapon 18 | . . . 1 1 7 7 2 Highest Loss Streak 6 | . . 2 2 1 6 6 3 To Critical Strikes 1 | . . . . . 1 . . Average Slot Usage (%) 76 | . 92 97 97 98 89 67 37 Engine 4 | . 14 10 10 8 2 3 . Core 3 | . . . . . 4 5 1 Treads 9 | . . . 21 27 17 . . Leg 7 | . 1 16 . . 8 12 . Hover 1 | . 26 4 . . . . 4 Device 4 | . 6 10 10 . . 6 3 Storage 7 | . 14 11 11 9 8 6 4 Processor 14 | . . 22 22 18 14 13 11 Protection 3 | . . . . 8 5 1 1 Ballistic Gun 13 | . 26 20 14 21 18 11 . Ballistic Cannon 2 | . . . 6 5 6 . . Naked Turns . | . . . . . . . . Heaviest Build 82 | 11 12 15 20 64 64 82 70 Greatest Support 88 | 20 20 23 40 60 88 30 30 Greatest Overweight (x) 23 | 1 . 1 . 1 3 23 6 Average Overweight (x) 1 | . . . . . . 2 1 Largest Inventory Capacity 20 | 8 8 8 20 20 20 20 20 Average Capacity 17 | 7 8 8 8 19 20 20 17 Most Carried 20 | 8 8 8 8 20 20 20 20 Average Carried 15 | 5 7 7 7 14 18 16 16 Final Capacity 20 | 8 8 8 8 20 20 20 5 Final Carried 20 | 6 8 8 8 20 11 18 5 Class Distribution -------------------- 42% | Scavenger-Gunner 35% | Mutant 13% | Scavenger-Mutant 7% | Scavenger-Tank Dominant Class ---------------- Mutant | -10/Materials Mutant | -9/Materials Scavenger-Mutant | -9/Storage Scavenger-Gunner | -8/Materials Scavenger-Gunner | -7/Factory Scavenger-Gunner | -6/Factory Mutant | -5/Factory Resources | -11 -10 -9 -9 -8 -7 -6 -5 ----------- Run | Yrd Mat Mat Sto Mat Fac Fac Fac Matter Collected 3332 | 183 30 448 406 562 796 774 133 Remotely . | . . . . . . . . Salvage Created 3670 | . 30 385 586 721 808 976 164 Parts 212 | . 6 28 28 51 47 43 9 Haulers Intercepted 1 | . . . . 1 . . . Recyclers Shooed 5 | . . 1 3 . 1 . . Parts Field Recycled . | . . . . . . . . Retrieved Matter . | . . . . . . . . Parts Self-Destructed . | . . . . . . . . Prevented . | . . . . . . . . Kills | -11 -10 -9 -9 -8 -7 -6 -5 ------- Run | Yrd Mat Mat Sto Mat Fac Fac Fac Combat Hostiles Destroyed 67 | . . 10 9 12 12 18 6 Guns 40 | . . 9 4 7 5 13 2 Cannons 20 | . . 1 5 5 7 2 . AOE 7 | . . . . . . 3 4 Classes Destroyed 13 | . 1 3 2 3 3 1 . Worker 8 | . . . 1 4 2 1 . Builder 3 | . . . . . 2 . 1 Tunneler 1 | . . . . . 1 . . Hauler 1 | . . . . 1 . . . Recycler 10 | . . . 4 3 3 . . Watcher 7 | . 1 1 . 4 1 . . Swarmer 11 | . . 3 4 4 . . . Grunt 20 | . . 5 . 2 5 8 . Brawler 1 | . . . . . . 1 . Duelist 2 | . . . . 1 . 1 . Sentry 15 | . . 2 5 3 4 1 . Hunter 6 | . . . . 2 1 1 2 Programmer 12 | . . . . . 2 6 4 Best Kill Streak 9 | . 1 5 9 8 7 4 5 Combat Bots Only 6 | . . 4 6 4 2 3 4 Max Kills in Single Turn 5 | . 1 2 1 2 3 2 5 Gunslinging . | . . . . . . . . Exploded 4 | . . . . . . 2 4 Melee . | . . . . . . . . Uniques/NPCs Destroyed . | . . . . . . . . Combat | -11 -10 -9 -9 -8 -7 -6 -5 -------- Run | Yrd Mat Mat Sto Mat Fac Fac Fac Hostile Shots Fired 907 | . . 62 55 83 364 175 168 Missed 281 | . . 17 17 19 120 47 61 Damage Taken 8733 | . . 559 529 1021 2334 2465 1825 Core 2024 | . . 122 73 107 280 431 1011 Absorbed by Shields 525 | . . . . . . 324 201 Redirected to Shielding 73 | . . . . . . . 73 Regen/Repaired (Parts) 19 | . . 19 . . . . . Core Remaining (%) 73 | 100 100 . 51 80 60 49 . Volleys Fired 257 | . 3 27 37 49 76 54 11 Largest 4 | . 2 2 2 3 4 4 2 Hottest 205 | . 40 43 62 85 113 205 119 Shots Fired 653 | . 5 55 65 141 231 144 12 Gun 507 | . 4 45 46 101 170 133 8 Cannon 129 | . . . 19 40 61 9 . Launcher 6 | . . . . . . 2 4 Special 11 | . 1 10 . . . . . Kinetic 602 | . 4 45 65 141 231 116 . Thermal 27 | . 1 10 . . . 9 7 Explosive 6 | . . . . . . 2 4 Electromagnetic 18 | . . . . . . 17 1 Robot Hit Streak 26 | . 1 6 19 16 26 8 12 Robot Miss Streak 5 | . 1 1 2 3 3 5 1 Penetration Max 1 | . . . . . 1 1 . Secondary Targets 4 | . . 1 . . . 3 . Max Gunslinging Chain 1 | . . 1 . . . 1 . Shots Hit Robots 442 | . 2 41 49 98 150 92 10 Core Hits 187 | . 2 21 20 42 48 42 12 Critical Kills 2 | . . . . 1 . 1 . Critical Parts Destroyed 1 | . . . 1 . . . . Critical Strikes 6 | . . . 2 2 1 1 . Destroy 4 | . . . 2 1 . 1 . Blast 2 | . . . . 1 1 . . Melee Attacks . | . . . . . . . . Impact . | . . . . . . . . Slashing . | . . . . . . . . Piercing . | . . . . . . . . Sneak Attacks . | . . . . . . . . Combat Hostiles . | . . . . . . . . Follow-up Attacks . | . . . . . . . . Damage Inflicted 9076 | . 21 553 842 1586 2679 2235 1160 Guns 5465 | . 11 465 499 852 1724 1775 139 Cannons 1981 | . . . 340 548 911 182 . Explosions 1430 | . . . . 132 . 278 1020 Melee . | . . . . . . . . Ramming 103 | . . 1 3 54 44 . 1 Kinetic 6933 | . 11 465 839 1400 2635 1583 . Thermal 1064 | . 10 87 . 132 . 182 653 Explosive 780 | . . . . . . 278 502 Electromagnetic 196 | . . . . . . 192 4 Impact . | . . . . . . . . Slashing . | . . . . . . . . Piercing . | . . . . . . . . Highest Corruption 15 | . . 2 3 1 4 3 15 Average Corruption 2 | . . 2 2 1 1 1 8 Corruption Purged . | . . . . . . . . Corruption Blocked 8 | . . . . . 8 . . Effects 59 | . . 4 8 . 11 20 16 Message Errors 14 | . . 2 1 . 3 6 2 Matter Fused 16 | . . 1 2 . 3 6 4 Heat Flow Errors 5 | . . . 3 . 1 1 . Energy Discharges 6 | . . . 1 . . 3 2 Parts Rejected 4 | . . . . . 1 1 2 Data Loss (minor) 4 | . . . . . 2 2 . Data Loss (major) 3 | . . . . . 1 1 1 Misfires 2 | . . 1 1 . . . . Alerts 1 | . . . . . . . 1 Misdirections 4 | . . . . . . . 4 Overload Shots . | . . . . . . . . Overflow Damage 202 | . . . . 39 4 19 140 Projectiles 9 | . . . . 3 4 2 . Explosions 193 | . . . . 36 . 17 140 Melee . | . . . . . . . . Knockbacks 10 | . . . 3 2 5 . . Impact . | . . . . . . . . Kinetic 10 | . . . 3 2 5 . . Secondary . | . . . . . . . . Self-Inflicted Damage 361 | . . . . 63 . 176 122 Shots 7 | . . . . 1 . 3 3 Rammed 13 | . . 1 2 5 4 . 1 Targets Rammed 17 | . . 1 2 7 6 . 1 Kicked 2 | . . . . . 2 . . Crushed 2 | . . . . 2 . . . Highest Temperature 311 | . 4 22 217 168 236 311 36 Average Temperature 67 | . 3 7 73 46 63 94 15 Received Heat Transfer 1750 | . . 294 171 198 573 448 66 Effects 2 | . . . . . . 2 . Interference 2 | . . . . . . 2 . Siege Activations . | . . . . . . . . Robots Corrupted . | . . . . . . . . Combat Hostiles . | . . . . . . . . Parts Fried 2 | . . . . . . 2 . Impact Corruptions . | . . . . . . . . Robots Melted . | . . . . . . . . Combat Hostiles . | . . . . . . . . Parts Melted 1 | . . . . . . 1 . Heat Transferred 1190 | . 37 296 . 150 . 185 522 Parts Sabotaged . | . . . . . . . . Parts Stolen . | . . . . . . . . Parts Stripped . | . . . . . . . . Power Chain Reactions . | . . . . . . . . Alert | -11 -10 -9 -9 -8 -7 -6 -5 ------- Run | Yrd Mat Mat Sto Mat Fac Fac Fac Peak Influence 426 | . 22 308 230 426 352 246 343 Initial 130 | . . 9 130 65 113 44 43 Average 136 | . 9 193 125 245 190 91 80 Maximum Alert Level 2 | . . 1 1 2 1 1 1 Low Security (%) 77 | 100 100 65 90 24 63 96 94 Level 1 21 | . . 34 9 72 36 3 5 Level 2 . | . . . . 2 . . . Level 3 . | . . . . . . . . Level 4 . | . . . . . . . . Level 5 . | . . . . . . . . High Security . | . . . . . . . . Max Security . | . . . . . . . . Squads Dispatched 17 | . . . . 1 5 7 4 Investigation 1 | . . . . . 1 . . Extermination 10 | . . . . . 2 6 2 Reinforcement 5 | . . . . . 2 1 2 Assault . | . . . . . . . . Garrison 1 | . . . . 1 . . . Intercept . | . . . . . . . . Searches Triggered . | . . . . . . . . Construction Impeded 1 | . . . . . 1 . . Haulers Reinforced . | . . . . . . . . Active Scanning Responses . | . . . . . . . . Cargo Convoy Interrupts 1 | . . . . . 1 . . Stealth | -11 -10 -9 -9 -8 -7 -6 -5 --------- Run | Yrd Mat Mat Sto Mat Fac Fac Fac Distress Signals 5 | . . 1 . 3 . 1 . Communications Jammed . | . . . . . . . . Distress Signals . | . . . . . . . . Times Spotted 132 | . 3 13 13 23 25 29 26 Peak Tracking Total 7 | . 2 5 5 5 3 6 7 Tactical Retreats 11 | . . 1 . 1 2 2 5 Traps | -11 -10 -9 -9 -8 -7 -6 -5 ------- Run | Yrd Mat Mat Sto Mat Fac Fac Fac Traps Triggered 11 | . . 1 5 2 2 . 1 Indirectly . | . . . . . . . . Trap Hack Attempts . | . . . . . . . . Triggered . | . . . . . . . . Disarmed . | . . . . . . . . Reprogrammed . | . . . . . . . . Reused . | . . . . . . . . Traps Extracted . | . . . . . . . . Installed . | . . . . . . . . Triggered 1 | . . . . . 1 . . Machines | -11 -10 -9 -9 -8 -7 -6 -5 ---------- Run | Yrd Mat Mat Sto Mat Fac Fac Fac Machines Disabled 16 | . . . . 4 5 5 2 Max in Single Turn 4 | . . . . 2 4 2 2 Machines Repaired . | . . . . . . . . Machines Dismantled . | . . . . . . . . Machines Sabotaged . | . . . . . . . . Overloaded Fab Kills . | . . . . . . . . Hacking | -11 -10 -9 -9 -8 -7 -6 -5 --------- Run | Yrd Mat Mat Sto Mat Fac Fac Fac Machines Accessed 11 | . 1 4 3 2 . 1 . Terminals 10 | . 1 3 3 2 . 1 . Fabricators . | . . . . . . . . Repair Stations 1 | . . 1 . . . . . Recycling Units . | . . . . . . . . Scanalyzers . | . . . . . . . . Garrison Access . | . . . . . . . . Total Hacks 18 | . 1 8 4 4 . 1 . Successful 13 | . 1 6 3 2 . 1 . Failed 5 | . . 2 1 2 . . . Catastrophic . | . . . . . . . . Database Lockouts . | . . . . . . . . Manual . | . . . . . . . . Terminals 16 | . 1 6 4 4 . 1 . Fabricators . | . . . . . . . . Repair Stations 2 | . . 2 . . . . . Recycling Units . | . . . . . . . . Scanalyzers . | . . . . . . . . Garrison Access . | . . . . . . . . Terminal Hacks 11 | . 1 4 3 2 . 1 . Record 2 | . . 1 . 1 . . . Robot Analysis 1 | . . 1 . . . . . Prototype ID Bank 2 | . . 1 . 1 . . . Open Door 2 | . . . 2 . . . . Open DSF 1 | . . . . . . 1 . Alert Level 1 | . . 1 . . . . . Unreport Threat 1 | . . . 1 . . . . Locate Traps 1 | . 1 . . . . . . Fabricator Hacks . | . . . . . . . . Repair Station Hacks 2 | . . 2 . . . . . Scan Component 1 | . . 1 . . . . . Repair 1 | . . 1 . . . . . Recycling Unit Hacks . | . . . . . . . . Scanalyzer . | . . . . . . . . Garrison Access Hacks . | . . . . . . . . Unauthorized Hacks . | . . . . . . . . Terminals . | . . . . . . . . Fabricators . | . . . . . . . . Repair Stations . | . . . . . . . . Recycling Units . | . . . . . . . . Scanalyzers . | . . . . . . . . Garrison Access . | . . . . . . . . Data Cores Recovered . | . . . . . . . . Used . | . . . . . . . . Hacking Detections 4 | . . 2 1 1 . . . Full Trace Events . | . . . . . . . . Feedback Events . | . . . . . . . . Feedback Blocked . | . . . . . . . . Robot Schematics Acquired . | . . . . . . . . Robots Built . | . . . . . . . . Authchips . | . . . . . . . . Time . | . . . . . . . . Total Robot Build Rating . | . . . . . . . . Part Schematics Acquired . | . . . . . . . . Parts Built . | . . . . . . . . Authchips . | . . . . . . . . Time . | . . . . . . . . Total Part Build Rating . | . . . . . . . . Parts Repaired 1 | . . 1 . . . . . Time 26 | . . 26 . . . . . Parts Recycled . | . . . . . . . . Recycled Matter . | . . . . . . . . Retrieved Matter . | . . . . . . . . Retrieved Components . | . . . . . . . . Parts Scanalyzed . | . . . . . . . . Part Schematics Acquired . | . . . . . . . . Parts Damaged . | . . . . . . . . Bothacking | -11 -10 -9 -9 -8 -7 -6 -5 ------------ Run | Yrd Mat Mat Sto Mat Fac Fac Fac Used RIF Installer . | . . . . . . . . Robots Hacked . | . . . . . . . . Non-combat . | . . . . . . . . Combat . | . . . . . . . . Robot Hacks Applied . | . . . . . . . . Relay Couplers Released . | . . . . . . . . Fabnet Peak Effective % . | . . . . . . . . Robots Rewired . | . . . . . . . . Allies Hacked . | . . . . . . . . Hacks Repelled . | . . . . . . . . Allies | -11 -10 -9 -9 -8 -7 -6 -5 -------- Run | Yrd Mat Mat Sto Mat Fac Fac Fac Total Allies . | . . . . . . . . Largest Group . | . . . . . . . . Highest-Rated Group . | . . . . . . . . Highest-Rated Ally . | . . . . . . . . Total Orders . | . . . . . . . . Ally Attacks . | . . . . . . . . Total Damage . | . . . . . . . . Kills . | . . . . . . . . Allies Corrupted . | . . . . . . . . Allies Melted . | . . . . . . . . Intel | -11 -10 -9 -9 -8 -7 -6 -5 ------- Run | Yrd Mat Mat Sto Mat Fac Fac Fac Robot Analysis Total 1 | . . 1 . . . . . Derelict Logs Recovered . | . . . . . . . . Drone Launches 6 | . . . . . . 6 . Drone Recoveries 2 | . . . . . . 2 . Exploration | -11 -10 -9 -9 -8 -7 -6 -5 ------------- Run | Yrd Mat Mat Sto Mat Fac Fac Fac Turns Passed 7096 | 70 155 375 599 934 1470 2357 1136 Spaces Moved 3258 | 49 228 213 271 418 651 709 719 Core 431 | 18 . . . . . 25 388 Treads 1210 | 2 . . 265 418 448 9 68 Legs 1018 | 29 7 165 6 . 203 608 . Wheels . | . . . . . . . . Hover 592 | . 221 47 . . . 61 263 Flight 7 | . . 1 . . . 6 . Fastest Speed 50 | 50 56 56 120 160 120 190 50 Average Speed 183 | 107 57 108 159 174 178 305 148 Slowest Speed 1200 | 160 120 120 160 240 400 1200 360 Overloaded Moves . | . . . . . . . . Propulsion Burnouts . | . . . . . . . . Robots Hopped . | . . . . . . . . Cave-ins Triggered . | . . . . . . . . Exploration Rate (%) 26 | 3 40 18 43 44 22 16 25 Regions Visited 7 Branch Regions 1 Pre-discovered Areas . | . . . . . . . . Known Exits Taken 4 | . . 1 1 1 1 . . Unknown Exits Taken 3 | 1 1 . . . . 1 . Scrap Searched . | . . . . . . . . Spaces Dug 17 | . . . . . . . 17 Terrain Destroyed 203 | . . . . 39 52 33 79 Melee . | . . . . . . . . Projectile 7 | . . . . 1 3 3 . AOE 195 | . . . . 38 48 30 79 Terrain Rammed . | . . . . . . . . Walls Destroyed . | . . . . . . . . Machines Disabled . | . . . . . . . . Actions | -11 -10 -9 -9 -8 -7 -6 -5 --------- Run | Yrd Mat Mat Sto Mat Fac Fac Fac Total 3865 | 65 243 293 370 516 796 809 773 Wait 95 | . . 27 35 4 19 2 8 Move 3251 | 48 227 212 270 417 650 708 719 Hop . | . . . . . . . . Pick Up 88 | 10 5 7 6 20 12 21 7 Fast Attach 20 | 2 1 2 7 . . 4 4 Attach 63 | 4 . 3 2 5 23 16 10 Detach 6 | . . . . . 3 2 1 Swap 33 | 1 4 8 6 9 4 1 . Drop 26 | . 3 6 5 5 3 1 3 Fire 257 | . 3 27 37 49 76 54 11 Melee . | . . . . . . . . Ram 1 | . . 1 . . . . . Kick 2 | . . . . . 2 . . Crush 14 | . . . 2 7 4 . 1 Escape Stasis 9 | . . . . . . . 9 Rewire . | . . . . . . . . Trap . | . . . . . . . . Miscellaneous . | . . . . . . . . Route ------- -11/Scrapyard -10/Materials -9/Materials -9/Storage -8/Materials -7/Factory (discovered 2 exits: *Fac / *Low) -6/Factory -5/Factory History --------- Turn | Location | Event 13 | -11/Scrapyard | Discovered new exit (range 15) 71 | -11/Scrapyard | Entered Materials 181 | -10/Materials | Discovered new exit (range 3) 226 | -10/Materials | Entered another Materials area 226 | -9/Materials | Evolved 2 slots: Utility x2 359 | -9/Materials | Build established: Mutant 437 | -9/Materials | Discovered new exit (range 16) 568 | -9/Materials | Repaired Sensor Array 600 | -9/Materials | Identified exit to Storage 601 | -9/Materials | Entered Storage 1135 | -9/Storage | Build established: Scavenger-Mutant 1174 | -9/Storage | Discovered new exit (range 15) 1198 | -9/Storage | Identified exit to Materials 1200 | -9/Storage | Entered Materials 1200 | -8/Materials | Evolved 2 slots: Propulsion x1, Weapon x1 1337 | -8/Materials | Garrison activated, responded to threat 1636 | -8/Materials | Build established: Scavenger-Gunner 2088 | -8/Materials | Discovered new exit (range 15) 2132 | -8/Materials | Identified exit to Factory 2134 | -8/Materials | Entered Factory 2134 | -7/Factory | Evolved 2 slots: Propulsion x1, Weapon x1 2228 | -7/Factory | Discovered new exit (range 15) 2251 | -7/Factory | Lost 3 parts (3n) 2332 | -7/Factory | Identified exit to Lower Caves 3009 | -7/Factory | Lost 6 parts (1p2n1u2w) 3108 | -7/Factory | Lost 3 parts (1n2w) 3494 | -7/Factory | Cargo convoy interrupted 3571 | -7/Factory | Lost 5 parts (1p1n1u2w) 3581 | -7/Factory | Discovered new exit (range 11) 3602 | -7/Factory | Identified exit to Factory 3604 | -7/Factory | Entered another Factory area 3604 | -6/Factory | Evolved 2 slots: Power x1, Utility x1 4507 | -6/Factory | Build established: Scavenger-Tank 4972 | -6/Factory | Lost 6 parts (2p1n3w) 5402 | -6/Factory | Lost 3 parts (1n1u1w) 5527 | -6/Factory | Lost 3 parts (1p1n1w) 5670 | -6/Factory | Build established: Mutant 5711 | -6/Factory | Core integrity fell below 50% 5739 | -6/Factory | Lost 3 parts (2p1u) 5822 | -6/Factory | Discovered new exit (range 7) 5961 | -6/Factory | Entered another Factory area 5961 | -5/Factory | Evolved 2 slots: Utility x2 6807 | -5/Factory | System corruption reached 10% 6823 | -5/Factory | Lost 3 parts (1u2w) 6936 | -5/Factory | Core integrity fell below 50% 7054 | -5/Factory | Core integrity fell below 20% 7097 | -5/Factory | Destroyed by S-27 Virus with Autogun Last Messages --------------- 06988_ O-24 Administrator: "IFF HANDSHAKE FAILED. SECURING TERMINAL." 06993_ ALERT: Hostiles spotted, dispatching reinforcements to Terminal F015. 06995_ K-01 Serf cleans the Fusion Modulator. 06996_ Nuclear Reactor explodes. 06999_ K-01 Serf cleans the Fusion Modulator. 07001_ System corrupted: Matter fused (-10). 07002_ K-01 Serf cleans the Fusion Modulator. 07002_ C-30 ARC bursts open, deploying its payload. 07002_ G-67 Veteran unfolds itself. 07002_ G-50 Soldier unfolds itself. 07005_ Critical hit (Burn: +37). 07007_ Fusion Modulator explodes. 07012_ O-24 Administrator: "IFF HANDSHAKE FAILED. SECURING TERMINAL." 07018_ ALERT: Hostiles spotted, dispatching reinforcements to Terminal F014. 07038_ ZN80UJYPONFL=<%I0&POFELZ